[Event "Titled Tuesday Blitz August 22 Late 2023"]
[White "Fajdetic, Hrvoje"]
[Black "Janaszak, Dawid"]
[WhiteFideId "14501945"]
[BlackFideId "1119206"]
[WhiteElo "2264"]
[BlackElo "2513"]
[Result "1/2-1/2"]
[Round "4"]
[TimeControl "180+1"]
[Date "2023.08.22"]
[WhiteClock "0:00:28"]
[BlackClock "0:01:11"]
[Board "113"]

1. f4 {[%clk 0:02:53]}  Nc6 {[%clk 0:02:54]} 2. Nf3 {[%clk 0:02:51]}  g6 {[%clk 0:02:54]} 3. e4 {[%clk 0:02:45]}  Bg7 {[%clk 0:02:53]} 4. d3 {[%clk 0:02:44]}  d5 {[%clk 0:02:53]} 5. e5 {[%clk 0:02:43]}  Bg4 {[%clk 0:02:52]} 6. Be2 {[%clk 0:02:42]}  Nh6 {[%clk 0:02:48]} 7. O-O {[%clk 0:02:34]}  O-O {[%clk 0:02:48]} 8. d4 {[%clk 0:02:28]}  f6 {[%clk 0:02:46]} 9. c3 {[%clk 0:02:27]}  Nf5 {[%clk 0:02:44]} 10. Qe1 {[%clk 0:02:17]}  Bxf3 {[%clk 0:02:39]} 11. Bxf3 {[%clk 0:02:14]}  e6 {[%clk 0:02:39]} 12. g4 {[%clk 0:02:00]}  fxe5 {[%clk 0:02:39]} 13. gxf5 {[%clk 0:01:53]}  e4 {[%clk 0:02:40]} 14. Bg2 {[%clk 0:01:30]}  exf5 {[%clk 0:02:39]} 15. Na3 {[%clk 0:01:26]}  Kh8 {[%clk 0:02:30]} 16. Nc2 {[%clk 0:01:25]}  Qd7 {[%clk 0:02:22]} 17. Ne3 {[%clk 0:01:23]}  Nd8 {[%clk 0:02:22]} 18. h4 {[%clk 0:01:19]}  h5 {[%clk 0:02:17]} 19. Bh3 {[%clk 0:01:11]}  Bf6 {[%clk 0:02:14]} 20. Kh2 {[%clk 0:01:01]}  Ne6 {[%clk 0:02:12]} 21. Ng2 {[%clk 0:00:58]}  c5 {[%clk 0:02:08]} 22. dxc5 {[%clk 0:00:56]}  Nxc5 {[%clk 0:02:09]} 23. Be3 {[%clk 0:00:52]}  Nd3 {[%clk 0:02:09]} 24. Qe2 {[%clk 0:00:50]}  b5 {[%clk 0:02:04]} 25. Rad1 {[%clk 0:00:48]}  b4 {[%clk 0:02:01]} 26. Rxd3 {[%clk 0:00:45]}  exd3 {[%clk 0:02:01]} 27. Qxd3 {[%clk 0:00:46]}  bxc3 {[%clk 0:02:00]} 28. bxc3 {[%clk 0:00:47]}  Qa4 {[%clk 0:01:51]} 29. Rf2 {[%clk 0:00:43]}  Rfe8 {[%clk 0:01:45]} 30. Bxf5 {[%clk 0:00:40]}  gxf5 {[%clk 0:01:41]} 31. Qxf5 {[%clk 0:00:41]}  Bg7 {[%clk 0:01:24]} 32. Qxh5+ {[%clk 0:00:38]}  Kg8 {[%clk 0:01:24]} 33. Qxd5+ {[%clk 0:00:37]}  Kh8 {[%clk 0:01:21]} 34. Qh5+ {[%clk 0:00:33]}  Kg8 {[%clk 0:01:22]} 35. Qd5+ {[%clk 0:00:32]}  Kh7 {[%clk 0:01:12]} 36. Qf5+ {[%clk 0:00:28]}  Kg8 {[%clk 0:01:11]} 37. Qd5+ {[%clk 0:00:28]} 1/2-1/2


[Site "https://www.chess.com"]

[Event "Titled Tuesday Blitz August 22 Late 2023"]
[White "Powell, Paul"]
[Black "dodoucb"]
[WhiteFideId "2005840"]
[WhiteElo "2127"]
[BlackElo "2462"]
[Result "0-1"]
[Round "4"]
[TimeControl "180+1"]
[Date "2023.08.22"]
[WhiteClock "0:00:19"]
[BlackClock "0:00:48"]
[Board "115"]

1. d4 {[%clk 0:03:00]}  Nf6 {[%clk 0:02:59]} 2. Nf3 {[%clk 0:03:00]}  e6 {[%clk 0:02:59]} 3. Bf4 {[%clk 0:02:59]}  c5 {[%clk 0:02:58]} 4. c3 {[%clk 0:02:55]}  b6 {[%clk 0:02:58]} 5. e3 {[%clk 0:02:48]}  Bb7 {[%clk 0:02:57]} 6. Nbd2 {[%clk 0:02:48]}  Be7 {[%clk 0:02:57]} 7. Nc4 {[%clk 0:02:48]}  d5 {[%clk 0:02:55]} 8. Bxb8 {[%clk 0:02:48]}  Rxb8 {[%clk 0:02:40]} 9. Qa4+ {[%clk 0:02:44]}  Qd7 {[%clk 0:02:28]} 10. Nxb6 {[%clk 0:02:13]}  Qxa4 {[%clk 0:02:21]} 11. Nxa4 {[%clk 0:02:13]}  c4 {[%clk 0:02:21]} 12. b3 {[%clk 0:01:41]}  Bc6 {[%clk 0:02:06]} 13. Nc5 {[%clk 0:01:37]}  Bxc5 {[%clk 0:01:48]} 14. dxc5 {[%clk 0:01:36]}  cxb3 {[%clk 0:01:49]} 15. axb3 {[%clk 0:01:37]}  Rxb3 {[%clk 0:01:48]} 16. Rxa7 {[%clk 0:01:34]}  O-O {[%clk 0:01:47]} 17. Nd4 {[%clk 0:01:34]}  Rb1+ {[%clk 0:01:46]} 18. Kd2 {[%clk 0:01:20]}  Ne4+ {[%clk 0:01:43]} 19. Kc2 {[%clk 0:01:20]}  Rfb8 {[%clk 0:01:42]} 20. Ra2 {[%clk 0:01:06]}  Ba4+ {[%clk 0:01:38]} 21. Kd3 {[%clk 0:00:59]}  R8b2 {[%clk 0:01:31]} 22. Rxb2 {[%clk 0:00:53]}  Rxb2 {[%clk 0:01:29]} 23. Nf3 {[%clk 0:00:46]}  Nxf2+ {[%clk 0:01:23]} 24. Kd4 {[%clk 0:00:44]}  Nxh1 {[%clk 0:01:22]} 25. Ne5 {[%clk 0:00:40]}  f6 {[%clk 0:01:22]} 26. Nd3 {[%clk 0:00:38]}  Rd2 {[%clk 0:01:07]} 27. c4 {[%clk 0:00:35]}  Nf2 {[%clk 0:01:05]} 28. cxd5 {[%clk 0:00:34]}  exd5 {[%clk 0:01:06]} 29. Kc3 {[%clk 0:00:31]}  Ne4+ {[%clk 0:01:05]} 30. Kd4 {[%clk 0:00:29]}  Bb5 {[%clk 0:01:00]} 31. Kxd5 {[%clk 0:00:26]}  Nxc5 {[%clk 0:00:49]} 32. Kxc5 {[%clk 0:00:19]}  Bxd3 {[%clk 0:00:48]} 0-1


[Site "https://www.chess.com"]

[Event "Titled Tuesday Blitz August 22 Late 2023"]
[White "Karttunen, Mika"]
[Black "Silva Lucena, Cristian"]
[WhiteFideId "502081"]
[BlackFideId "2232588"]
[WhiteElo "2635"]
[BlackElo "2420"]
[Result "0-1"]
[Round "4"]
[TimeControl "180+1"]
[Date "2023.08.22"]
[WhiteClock "0:00:04"]
[BlackClock "0:00:41"]
[Board "121"]

1. e4 {[%clk 0:03:00]}  e5 {[%clk 0:02:37]} 2. Nf3 {[%clk 0:03:00]}  Nc6 {[%clk 0:02:36]} 3. Bb5 {[%clk 0:02:58]}  g6 {[%clk 0:02:35]} 4. c3 {[%clk 0:02:55]}  a6 {[%clk 0:02:35]} 5. Ba4 {[%clk 0:02:55]}  d6 {[%clk 0:02:34]} 6. d4 {[%clk 0:02:55]}  Bd7 {[%clk 0:02:34]} 7. Bc2 {[%clk 0:02:39]}  Bg7 {[%clk 0:02:32]} 8. h3 {[%clk 0:02:37]}  Nf6 {[%clk 0:02:30]} 9. Be3 {[%clk 0:02:34]}  O-O {[%clk 0:02:29]} 10. Nbd2 {[%clk 0:02:19]}  exd4 {[%clk 0:02:08]} 11. cxd4 {[%clk 0:02:19]}  Nb4 {[%clk 0:02:07]} 12. Bb1 {[%clk 0:01:47]}  Bb5 {[%clk 0:02:05]} 13. Nb3 {[%clk 0:01:47]}  a5 {[%clk 0:02:03]} 14. a3 {[%clk 0:01:44]}  Nc6 {[%clk 0:01:48]} 15. d5 {[%clk 0:01:33]}  Nb8 {[%clk 0:01:45]} 16. Nbd4 {[%clk 0:01:33]}  Ba6 {[%clk 0:01:44]} 17. Nd2 {[%clk 0:00:30]}  Re8 {[%clk 0:01:40]} 18. Qf3 {[%clk 0:00:20]}  Nxd5 {[%clk 0:01:34]} 19. Kd1 {[%clk 0:00:14]}  Nxe3+ {[%clk 0:01:24]} 20. fxe3 {[%clk 0:00:15]}  Nd7 {[%clk 0:01:22]} 21. Ba2 {[%clk 0:00:15]}  Ne5 {[%clk 0:01:20]} 22. Qf4 {[%clk 0:00:15]}  Rf8 {[%clk 0:01:15]} 23. g4 {[%clk 0:00:13]}  Nd3 {[%clk 0:01:13]} 24. Qf3 {[%clk 0:00:12]}  Nxb2+ {[%clk 0:01:12]} 25. Kc2 {[%clk 0:00:13]}  Nd3 {[%clk 0:01:11]} 26. h4 {[%clk 0:00:13]}  Ne5 {[%clk 0:01:11]} 27. Qg3 {[%clk 0:00:13]}  c5 {[%clk 0:01:07]} 28. N4b3 {[%clk 0:00:12]}  b5 {[%clk 0:01:07]} 29. h5 {[%clk 0:00:12]}  a4 {[%clk 0:01:04]} 30. Nc1 {[%clk 0:00:12]}  b4 {[%clk 0:01:03]} 31. Bd5 {[%clk 0:00:11]}  b3+ {[%clk 0:01:01]} 32. Kd1 {[%clk 0:00:10]}  b2 {[%clk 0:00:59]} 33. Rb1 {[%clk 0:00:10]}  bxc1=Q+ {[%clk 0:00:59]} 34. Rxc1 {[%clk 0:00:11]}  Nd3 {[%clk 0:00:57]} 35. Qh2 {[%clk 0:00:10]}  g5 {[%clk 0:00:53]} 36. h6 {[%clk 0:00:10]}  Be5 {[%clk 0:00:52]} 37. Qh5 {[%clk 0:00:09]}  Nf2+ {[%clk 0:00:49]} 38. Kc2 {[%clk 0:00:09]}  Nxh1 {[%clk 0:00:47]} 39. Rxh1 {[%clk 0:00:09]}  Qa5 {[%clk 0:00:46]} 40. Qxg5+ {[%clk 0:00:08]}  Kh8 {[%clk 0:00:46]} 41. Qg7+ {[%clk 0:00:03]}  Bxg7 {[%clk 0:00:44]} 42. hxg7+ {[%clk 0:00:04]}  Kxg7 {[%clk 0:00:41]} 43. Nf3 {[%clk 0:00:04]} 0-1


[Site "https://www.chess.com"]

[Event "Titled Tuesday Blitz August 22 Late 2023"]
[White "Almiron, Antonio"]
[Black "Bueno, Alfeu Junior Varela"]
[WhiteFideId "3701166"]
[BlackFideId "2108879"]
[WhiteElo "2627"]
[BlackElo "2417"]
[Result "1-0"]
[Round "4"]
[TimeControl "180+1"]
[Date "2023.08.22"]
[WhiteClock "0:01:04"]
[BlackClock "0:00:07"]
[Board "122"]

1. e4 {[%clk 0:02:59]}  e6 {[%clk 0:02:55]} 2. d4 {[%clk 0:02:59]}  d5 {[%clk 0:02:53]} 3. Nc3 {[%clk 0:02:59]}  Nf6 {[%clk 0:02:53]} 4. e5 {[%clk 0:02:59]}  Nfd7 {[%clk 0:02:53]} 5. f4 {[%clk 0:02:59]}  c5 {[%clk 0:02:54]} 6. Nf3 {[%clk 0:02:59]}  Nc6 {[%clk 0:02:54]} 7. Be3 {[%clk 0:02:59]}  cxd4 {[%clk 0:02:55]} 8. Nxd4 {[%clk 0:02:59]}  Bc5 {[%clk 0:02:56]} 9. Qd2 {[%clk 0:02:58]}  O-O {[%clk 0:02:57]} 10. O-O-O {[%clk 0:02:56]}  a6 {[%clk 0:02:57]} 11. h4 {[%clk 0:02:55]}  Nxd4 {[%clk 0:02:57]} 12. Bxd4 {[%clk 0:02:55]}  b5 {[%clk 0:02:58]} 13. Rh3 {[%clk 0:02:54]}  b4 {[%clk 0:02:58]} 14. Na4 {[%clk 0:02:54]}  Bxd4 {[%clk 0:02:58]} 15. Qxd4 {[%clk 0:02:55]}  Qa5 {[%clk 0:02:58]} 16. b3 {[%clk 0:02:47]}  Bb7 {[%clk 0:02:59]} 17. c3 {[%clk 0:02:38]}  Rfc8 {[%clk 0:02:51]} 18. Kb2 {[%clk 0:02:37]}  bxc3+ {[%clk 0:02:47]} 19. Rxc3 {[%clk 0:02:37]}  Rxc3 {[%clk 0:02:45]} 20. Qxc3 {[%clk 0:02:34]}  Qxc3+ {[%clk 0:02:45]} 21. Kxc3 {[%clk 0:02:23]}  Bc6 {[%clk 0:02:31]} 22. Kb4 {[%clk 0:02:22]}  Rb8+ {[%clk 0:01:50]} 23. Ka5 {[%clk 0:02:21]}  Bb5 {[%clk 0:01:50]} 24. Rc1 {[%clk 0:02:07]}  Kf8 {[%clk 0:01:15]} 25. h5 {[%clk 0:01:58]}  Ke8 {[%clk 0:01:09]} 26. g4 {[%clk 0:01:52]}  Kd8 {[%clk 0:01:09]} 27. Bh3 {[%clk 0:01:49]}  Bxa4 {[%clk 0:01:00]} 28. Kxa4 {[%clk 0:01:45]}  Rb5 {[%clk 0:01:00]} 29. Bf1 {[%clk 0:01:38]}  Nb6+ {[%clk 0:01:00]} 30. Ka3 {[%clk 0:01:36]}  Ra5+ {[%clk 0:01:00]} 31. Kb2 {[%clk 0:01:36]}  d4 {[%clk 0:00:56]} 32. Rc6 {[%clk 0:01:32]}  Nd5 {[%clk 0:00:50]} 33. a3 {[%clk 0:01:28]}  Nxf4 {[%clk 0:00:46]} 34. Bc4 {[%clk 0:01:22]}  d3 {[%clk 0:00:33]} 35. b4 {[%clk 0:01:17]}  Rxe5 {[%clk 0:00:32]} 36. Bxa6 {[%clk 0:01:12]}  Re2+ {[%clk 0:00:22]} 37. Kb3 {[%clk 0:01:12]}  Kd7 {[%clk 0:00:20]} 38. Rc4 {[%clk 0:01:05]}  Rf2 {[%clk 0:00:13]} 39. Rd4+ {[%clk 0:01:06]}  Kc6 {[%clk 0:00:13]} 40. Bxd3 {[%clk 0:01:04]}  Rf3 {[%clk 0:00:13]} 41. Kc4 {[%clk 0:01:04]}  e5 {[%clk 0:00:11]} 42. Be4+ {[%clk 0:01:03]}  Kb6 {[%clk 0:00:09]} 43. Rd6+ {[%clk 0:01:03]}  Kc7 {[%clk 0:00:09]} 44. Rc6+ {[%clk 0:01:03]}  Kd7 {[%clk 0:00:07]} 45. Bxf3 {[%clk 0:01:04]} 1-0


[Site "https://www.chess.com"]

[Event "Titled Tuesday Blitz August 22 Late 2023"]
[White "Romero Ruscalleda, Josep"]
[Black "Veiga, Jose Francisco R P Neves"]
[WhiteFideId "2231859"]
[BlackFideId "1930087"]
[WhiteElo "2406"]
[BlackElo "2589"]
[Result "0-1"]
[Round "4"]
[TimeControl "180+1"]
[Date "2023.08.22"]
[WhiteClock "0:00:40"]
[BlackClock "0:01:32"]
[Board "127"]

1. e4 {[%clk 0:03:00]}  Nc6 {[%clk 0:02:57]} 2. d4 {[%clk 0:03:00]}  d5 {[%clk 0:02:51]} 3. Nc3 {[%clk 0:02:56]}  dxe4 {[%clk 0:02:45]} 4. d5 {[%clk 0:02:56]}  Ne5 {[%clk 0:02:41]} 5. Qd4 {[%clk 0:02:56]}  Ng6 {[%clk 0:02:40]} 6. Nxe4 {[%clk 0:02:52]}  Nf6 {[%clk 0:02:40]} 7. Nxf6+ {[%clk 0:02:51]}  exf6 {[%clk 0:02:41]} 8. Nf3 {[%clk 0:02:49]}  Bd6 {[%clk 0:02:40]} 9. Bb5+ {[%clk 0:02:48]}  Bd7 {[%clk 0:02:40]} 10. Bxd7+ {[%clk 0:02:47]}  Qxd7 {[%clk 0:02:41]} 11. O-O {[%clk 0:02:46]}  O-O {[%clk 0:02:42]} 12. h3 {[%clk 0:02:43]}  Rfe8 {[%clk 0:02:42]} 13. c4 {[%clk 0:02:42]}  b6 {[%clk 0:02:36]} 14. a3 {[%clk 0:02:38]}  f5 {[%clk 0:02:36]} 15. b4 {[%clk 0:02:36]}  Re4 {[%clk 0:02:36]} 16. Qd3 {[%clk 0:02:32]}  Rae8 {[%clk 0:02:31]} 17. Bb2 {[%clk 0:02:30]}  Nf4 {[%clk 0:02:29]} 18. Qb3 {[%clk 0:02:17]}  f6 {[%clk 0:02:22]} 19. Rac1 {[%clk 0:02:13]}  Qf7 {[%clk 0:02:21]} 20. Rc2 {[%clk 0:01:48]}  Qg6 {[%clk 0:02:20]} 21. Nh4 {[%clk 0:01:48]}  Qg5 {[%clk 0:02:14]} 22. c5 {[%clk 0:01:38]}  Nxh3+ {[%clk 0:01:45]} 23. Qxh3 {[%clk 0:01:35]}  Rxh4 {[%clk 0:01:45]} 24. Qf3 {[%clk 0:01:16]}  Bh2+ {[%clk 0:01:43]} 25. Kh1 {[%clk 0:01:15]}  Qh6 {[%clk 0:01:39]} 26. g3 {[%clk 0:01:01]}  Bxg3+ {[%clk 0:01:38]} 27. Kg2 {[%clk 0:00:40]}  Bf4 {[%clk 0:01:32]} 0-1


[Site "https://www.chess.com"]

[Event "Titled Tuesday Blitz August 22 Late 2023"]
[White "Mazibuko, Khanya"]
[Black "luksona14"]
[WhiteFideId "14321041"]
[WhiteElo "2405"]
[BlackElo "2564"]
[Result "1-0"]
[Round "4"]
[TimeControl "180+1"]
[Date "2023.08.22"]
[WhiteClock "0:00:06"]
[BlackClock "0:00:17"]
[Board "129"]

1. e4 {[%clk 0:02:58]}  d6 {[%clk 0:02:58]} 2. d4 {[%clk 0:02:58]}  g6 {[%clk 0:02:59]} 3. Nc3 {[%clk 0:02:58]}  Bg7 {[%clk 0:02:59]} 4. Be3 {[%clk 0:02:58]}  a6 {[%clk 0:03:00]} 5. f4 {[%clk 0:02:58]}  b5 {[%clk 0:03:00]} 6. Nf3 {[%clk 0:02:58]}  Bb7 {[%clk 0:03:01]} 7. Bd3 {[%clk 0:02:58]}  Nd7 {[%clk 0:03:01]} 8. e5 {[%clk 0:02:57]}  e6 {[%clk 0:03:01]} 9. O-O {[%clk 0:02:39]}  Ne7 {[%clk 0:03:00]} 10. a4 {[%clk 0:02:32]}  b4 {[%clk 0:03:00]} 11. Ne4 {[%clk 0:02:33]}  Nf5 {[%clk 0:02:43]} 12. Bf2 {[%clk 0:02:33]}  d5 {[%clk 0:02:44]} 13. Nc5 {[%clk 0:02:18]}  Nxc5 {[%clk 0:02:43]} 14. dxc5 {[%clk 0:02:17]}  d4 {[%clk 0:02:17]} 15. Bxf5 {[%clk 0:02:16]}  gxf5 {[%clk 0:02:16]} 16. Nxd4 {[%clk 0:02:04]}  Be4 {[%clk 0:02:00]} 17. Qh5 {[%clk 0:01:31]}  Qe7 {[%clk 0:01:48]} 18. Rad1 {[%clk 0:01:25]}  O-O-O {[%clk 0:01:45]} 19. Qe2 {[%clk 0:01:15]}  c6 {[%clk 0:01:25]} 20. Qxa6+ {[%clk 0:01:10]}  Qb7 {[%clk 0:01:25]} 21. Qb6 {[%clk 0:00:55]}  Qxb6 {[%clk 0:01:13]} 22. cxb6 {[%clk 0:00:54]}  Bf8 {[%clk 0:01:10]} 23. c3 {[%clk 0:00:46]}  Bc5 {[%clk 0:00:55]} 24. a5 {[%clk 0:00:45]}  Kb7 {[%clk 0:00:49]} 25. Ne2 {[%clk 0:00:35]}  Bxf2+ {[%clk 0:00:46]} 26. Kxf2 {[%clk 0:00:36]}  Bc2 {[%clk 0:00:41]} 27. Rxd8 {[%clk 0:00:34]}  Rxd8 {[%clk 0:00:39]} 28. cxb4 {[%clk 0:00:35]}  Rd2 {[%clk 0:00:40]} 29. Ke3 {[%clk 0:00:33]}  Rd3+ {[%clk 0:00:40]} 30. Kf2 {[%clk 0:00:33]}  Rd2 {[%clk 0:00:39]} 31. Re1 {[%clk 0:00:17]}  Be4 {[%clk 0:00:34]} 32. b3 {[%clk 0:00:12]}  Rb2 {[%clk 0:00:34]} 33. Kg3 {[%clk 0:00:10]}  Rxb3+ {[%clk 0:00:34]} 34. Kh4 {[%clk 0:00:09]}  Rxb4 {[%clk 0:00:35]} 35. Ra1 {[%clk 0:00:08]}  Ka6 {[%clk 0:00:35]} 36. g3 {[%clk 0:00:07]}  c5 {[%clk 0:00:34]} 37. Kg5 {[%clk 0:00:05]}  Rb3 {[%clk 0:00:26]} 38. Kf6 {[%clk 0:00:04]}  Bf3 {[%clk 0:00:26]} 39. Nc1 {[%clk 0:00:03]}  Rb5 {[%clk 0:00:26]} 40. Kxf7 {[%clk 0:00:03]}  Bd5 {[%clk 0:00:27]} 41. Ne2 {[%clk 0:00:01]}  Rb3 {[%clk 0:00:26]} 42. Ng1 {[%clk 0:00:01]}  c4 {[%clk 0:00:26]} 43. Nh3 {[%clk 0:00:02]}  c3 {[%clk 0:00:27]} 44. Ng1 {[%clk 0:00:02]}  c2 {[%clk 0:00:27]} 45. Rc1 {[%clk 0:00:02]}  Be4 {[%clk 0:00:26]} 46. Ne2 {[%clk 0:00:03]}  Kxa5 {[%clk 0:00:27]} 47. b7 {[%clk 0:00:02]}  Rb6 {[%clk 0:00:28]} 48. b8=Q {[%clk 0:00:02]}  Rxb8 {[%clk 0:00:28]} 49. Kf6 {[%clk 0:00:03]}  Rb6 {[%clk 0:00:29]} 50. Ke7 {[%clk 0:00:03]}  Kb4 {[%clk 0:00:29]} 51. Nd4 {[%clk 0:00:03]}  Kc3 {[%clk 0:00:29]} 52. Nxe6 {[%clk 0:00:04]}  Rb1 {[%clk 0:00:29]} 53. Rxc2+ {[%clk 0:00:04]}  Kxc2 {[%clk 0:00:29]} 54. Ng5 {[%clk 0:00:05]}  Rb7+ {[%clk 0:00:30]} 55. Kf6 {[%clk 0:00:05]}  Kd3 {[%clk 0:00:29]} 56. e6 {[%clk 0:00:06]}  Kd4 {[%clk 0:00:30]} 57. e7 {[%clk 0:00:06]}  Rb8 {[%clk 0:00:30]} 58. Nxh7 {[%clk 0:00:05]}  Kd5 {[%clk 0:00:30]} 59. Nf8 {[%clk 0:00:06]}  Kd6 {[%clk 0:00:30]} 60. h4 {[%clk 0:00:06]}  Re8 {[%clk 0:00:29]} 61. Ng6 {[%clk 0:00:06]}  Bf3 {[%clk 0:00:28]} 62. h5 {[%clk 0:00:07]}  Bxh5 {[%clk 0:00:28]} 63. Ne5 {[%clk 0:00:07]}  Rxe7 {[%clk 0:00:28]} 64. Kxf5 {[%clk 0:00:08]}  Be8 {[%clk 0:00:27]} 65. g4 {[%clk 0:00:08]}  Bd7+ {[%clk 0:00:27]} 66. Kf6 {[%clk 0:00:07]}  Re6+ {[%clk 0:00:26]} 67. Kg5 {[%clk 0:00:07]}  Ke7 {[%clk 0:00:25]} 68. Ng6+ {[%clk 0:00:06]}  Ke8 {[%clk 0:00:24]} 69. f5 {[%clk 0:00:07]}  Ra6 {[%clk 0:00:24]} 70. Ne5 {[%clk 0:00:06]}  Bc8 {[%clk 0:00:22]} 71. Nc4 {[%clk 0:00:07]}  Kf8 {[%clk 0:00:21]} 72. Ne3 {[%clk 0:00:06]}  Ra3 {[%clk 0:00:21]} 73. Nd5 {[%clk 0:00:06]}  Bb7 {[%clk 0:00:21]} 74. Nc7 {[%clk 0:00:03]}  Rg3 {[%clk 0:00:20]} 75. Ne6+ {[%clk 0:00:03]}  Kf7 {[%clk 0:00:21]} 76. Kf4 {[%clk 0:00:04]}  Rf3+ {[%clk 0:00:20]} 77. Ke5 {[%clk 0:00:03]}  Rg3 {[%clk 0:00:19]} 78. Kf4 {[%clk 0:00:03]}  Rf3+ {[%clk 0:00:18]} 79. Ke5 {[%clk 0:00:03]}  Bc8 {[%clk 0:00:19]} 80. Ng5+ {[%clk 0:00:03]}  Kf8 {[%clk 0:00:18]} 81. Nxf3 {[%clk 0:00:04]}  Bb7 {[%clk 0:00:18]} 82. Nd4 {[%clk 0:00:04]}  Bc8 {[%clk 0:00:18]} 83. Kf6 {[%clk 0:00:04]}  Bb7 {[%clk 0:00:18]} 84. g5 {[%clk 0:00:05]}  Bd5 {[%clk 0:00:19]} 85. g6 {[%clk 0:00:05]}  Kg8 {[%clk 0:00:19]} 86. Nb5 {[%clk 0:00:06]}  Bc6 {[%clk 0:00:19]} 87. Nc7 {[%clk 0:00:06]}  Bd5 {[%clk 0:00:17]} 88. Nxd5 {[%clk 0:00:06]} 1-0


[Site "https://www.chess.com"]

[Event "Titled Tuesday Blitz August 22 Late 2023"]
[White "Yang, Kevin"]
[Black "Guerra Tulcan, Lenin"]
[WhiteFideId "30908485"]
[BlackFideId "3601382"]
[WhiteElo "2405"]
[BlackElo "2552"]
[Result "1-0"]
[Round "4"]
[TimeControl "180+1"]
[Date "2023.08.22"]
[WhiteClock "0:00:21"]
[BlackClock "0:01:02"]
[Board "130"]

1. c4 {[%clk 0:03:00]}  e5 {[%clk 0:02:52]} 2. Nc3 {[%clk 0:03:00]}  Nf6 {[%clk 0:02:51]} 3. e3 {[%clk 0:02:54]}  a6 {[%clk 0:02:50]} 4. Nf3 {[%clk 0:02:50]}  d6 {[%clk 0:02:50]} 5. b4 {[%clk 0:02:40]}  Be7 {[%clk 0:02:47]} 6. Bb2 {[%clk 0:02:38]}  O-O {[%clk 0:02:47]} 7. d4 {[%clk 0:02:36]}  exd4 {[%clk 0:02:45]} 8. Nxd4 {[%clk 0:02:35]}  a5 {[%clk 0:02:45]} 9. b5 {[%clk 0:02:30]}  Nbd7 {[%clk 0:02:45]} 10. Be2 {[%clk 0:02:26]}  Nc5 {[%clk 0:02:45]} 11. O-O {[%clk 0:02:25]}  a4 {[%clk 0:02:45]} 12. a3 {[%clk 0:02:24]}  Re8 {[%clk 0:02:42]} 13. Bf3 {[%clk 0:02:20]}  Bf8 {[%clk 0:02:41]} 14. Qc2 {[%clk 0:02:13]}  g6 {[%clk 0:02:39]} 15. Rad1 {[%clk 0:02:05]}  Bg7 {[%clk 0:02:38]} 16. Rfe1 {[%clk 0:01:55]}  Ng4 {[%clk 0:02:33]} 17. Nd5 {[%clk 0:01:47]}  Ne5 {[%clk 0:02:31]} 18. Be2 {[%clk 0:01:45]}  c6 {[%clk 0:02:26]} 19. bxc6 {[%clk 0:01:36]}  bxc6 {[%clk 0:02:26]} 20. Nb4 {[%clk 0:01:35]}  Qb6 {[%clk 0:02:15]} 21. f4 {[%clk 0:01:29]}  Ned7 {[%clk 0:02:15]} 22. Ndxc6 {[%clk 0:01:19]}  Rxe3 {[%clk 0:02:00]} 23. Bxg7 {[%clk 0:01:15]}  Kxg7 {[%clk 0:01:58]} 24. Qb2+ {[%clk 0:01:11]}  Nf6 {[%clk 0:01:48]} 25. Qxf6+ {[%clk 0:01:07]}  Kxf6 {[%clk 0:01:46]} 26. Nd5+ {[%clk 0:01:06]}  Kg7 {[%clk 0:01:46]} 27. Nxb6 {[%clk 0:01:05]}  Ra6 {[%clk 0:01:45]} 28. Nxc8 {[%clk 0:01:01]}  Rxc6 {[%clk 0:01:46]} 29. Nxd6 {[%clk 0:01:01]}  Rxa3 {[%clk 0:01:40]} 30. Bf3 {[%clk 0:00:57]}  Rc7 {[%clk 0:01:40]} 31. Ne8+ {[%clk 0:00:56]}  Kh6 {[%clk 0:01:36]} 32. Nxc7 {[%clk 0:00:57]}  Rc3 {[%clk 0:01:34]} 33. Bd5 {[%clk 0:00:53]}  a3 {[%clk 0:01:32]} 34. Nb5 {[%clk 0:00:52]}  Rb3 {[%clk 0:01:28]} 35. Ra1 {[%clk 0:00:52]}  Nd3 {[%clk 0:01:23]} 36. Rf1 {[%clk 0:00:40]}  Rb2 {[%clk 0:01:19]} 37. Rxa3 {[%clk 0:00:38]}  Nc5 {[%clk 0:01:19]} 38. Bxf7 {[%clk 0:00:36]}  Ne4 {[%clk 0:01:19]} 39. Bd5 {[%clk 0:00:32]}  Nd2 {[%clk 0:01:18]} 40. Rh3+ {[%clk 0:00:30]}  Kg7 {[%clk 0:01:17]} 41. Re1 {[%clk 0:00:31]}  Nb3 {[%clk 0:01:14]} 42. Nd6 {[%clk 0:00:29]}  Nd4 {[%clk 0:01:12]} 43. Re7+ {[%clk 0:00:26]}  Kf8 {[%clk 0:01:07]} 44. Rf7+ {[%clk 0:00:26]}  Kg8 {[%clk 0:01:07]} 45. Rb7+ {[%clk 0:00:21]}  Kf8 {[%clk 0:01:02]} 46. Rxb2 {[%clk 0:00:21]} 1-0


[Site "https://www.chess.com"]